Cogmind - Beta 10.2 @@@ ROGUE MODE // 2021.03.19 @ 20:55:37 // Halloween2019/Abominations Player: CrossedViper Result: Destroyed by Lesser Abomination with Etherial Claws Performance ------------- Evolutions (1) 500 Regions Visited (2) 400 Robots Destroyed (11) 55 Value Destroyed (557) 557 Prototype IDs (3) 60 Alien Tech Used (0) 0 Bonus (0) 0 TOTAL SCORE: 1572 Bonus ------- None Cogmind --------- Core Integrity 0/400 Matter 216/300 Energy 280/280 System Corruption 3% Temperature Cool (6) Movement Rolling (90) Location -9/Materials Parts ------- > --- POWER (1) -------- Cooled Ion Engine > --- PROPULSION (2) --- Wheel Compact Wheel > --- UTILITY (4) ------ Small Storage Unit Armor Integrity Analyzer > --- WEAPON (2) ------- Light Cannon Grenade Launcher > --- INVENTORY (6) ---- Improved EM Shotgun Shock Bomb Launcher Shock Bomb Launcher Peak State ------------ > --- POWER ------------ Cooled Ion Engine > --- PROPULSION ------- Wheel Compact Wheel > --- UTILITY ---------- Small Storage Unit Armor Integrity Analyzer > --- WEAPON ----------- Improved EM Shotgun Light Cannon > --- INVENTORY -------- Shock Bomb Launcher Shock Bomb Launcher Grenade Launcher [Rating: 12] Favorites ----------- Power Light Ion Engine Engine Light Ion Engine Propulsion Compact Wheel Treads Light Treads Wheel Compact Wheel Flight Unit Improved Flight Unit Utility Small Storage Unit Storage Small Storage Unit Processor Armor Integrity Analyzer Weapon Light Assault Rifle Energy Gun Improved EM Shotgun Ballistic Gun Light Assault Rifle Ballistic Cannon Light Cannon Launcher Grenade Launcher Build | -11 -10 -9 ------- Run | Scr Mat Mat Slots Evolved 2 | . . 2 Power . | . . . Propulsion . | . . . Utility 2 | . . 2 Weapon . | . . . Parts Attached 21 | 7 . 14 Power 3 | 1 . 2 Engine 3 | 1 . 2 Core . | . . . Reactor . | . . . Propulsion 9 | 3 . 6 Treads 3 | 2 . 1 Leg . | . . . Wheel 5 | 1 . 4 Hover . | . . . Flight 1 | . . 1 Utility 2 | 1 . 1 Device . | . . . Storage 1 | 1 . . Processor 1 | . . 1 Hackware . | . . . Protection . | . . . Artifact . | . . . Weapon 7 | 2 . 5 Energy Gun 2 | . . 2 Energy Cannon . | . . . Ballistic Gun 2 | 2 . . Ballistic Cannon 1 | . . 1 Launcher 2 | . . 2 Special Weapon . | . . . Impact Weapon . | . . . Slashing Weapon . | . . . Piercing Weapon . | . . . Special Melee Weapon . | . . . Unidentified Prototypes 3 | . . 3 Parts Lost 8 | . . 8 Power 2 | . . 2 Propulsion 3 | . . 3 Utility . | . . . Weapon 3 | . . 3 Highest Loss Streak 6 | . . 6 Average Slot Usage (%) 67 | . 85 63 Engine 9 | . 14 7 Treads 5 | . 14 3 Wheel 16 | . 14 17 Storage 11 | . 14 11 Processor 1 | . . 2 Ballistic Gun 10 | . 28 5 Ballistic Cannon 6 | . . 8 Launcher 5 | . . 7 Naked Turns . | . . . Heaviest Build 18 | 9 9 18 Greatest Support 40 | 40 16 32 Greatest Overweight (x) . | . . . Average Overweight (x) . | . . . Largest Inventory Capacity 6 | 6 6 6 Average Capacity 5 | 5 6 6 Most Carried 6 | 4 5 6 Average Carried 3 | 2 4 3 Final Capacity 6 | 6 6 6 Final Carried 5 | 4 5 3 Class Distribution -------------------- 100% | Mutant Dominant Class ---------------- Mutant | -10/Materials Mutant | -9/Materials Resources | -11 -10 -9 ----------- Run | Scr Mat Mat Matter Collected 613 | 195 71 347 Remotely . | . . . Salvage Created 438 | . 56 382 Parts 25 | . 1 24 Haulers Intercepted . | . . . Recyclers Shooed . | . . . Parts Field Recycled . | . . . Retrieved Matter . | . . . Parts Self-Destructed . | . . . Prevented . | . . . Kills | -11 -10 -9 ------- Run | Scr Mat Mat Combat Hostiles Destroyed 9 | . 1 8 Guns 4 | . 1 3 AOE 5 | . . 5 Classes Destroyed 3 | . 1 2 Worker 1 | . . 1 Recycler 1 | . . 1 Abomination 9 | . 1 8 Best Kill Streak 3 | . 1 3 Combat Bots Only 2 | . 1 2 Max Kills in Single Turn 1 | . 1 1 Gunslinging . | . . . Exploded 1 | . . 1 Melee . | . . . Uniques/NPCs Destroyed . | . . . Combat | -11 -10 -9 -------- Run | Scr Mat Mat Damage Taken 1480 | . 157 1323 Core 439 | . 28 411 Absorbed by Shields . | . . . Core Remaining (%) 94 | 100 88 . Volleys Fired 51 | . 3 48 Largest 2 | . 2 2 Hottest 80 | . 40 80 Shots Fired 76 | . 6 70 Gun 43 | . 6 37 Cannon 9 | . . 9 Launcher 24 | . . 24 Special . | . . . Kinetic 47 | . 6 41 Thermal 2 | . . 2 Explosive 24 | . . 24 Electromagnetic 3 | . . 3 Robot Hit Streak 11 | . 2 11 Robot Miss Streak 3 | . 1 3 Penetration Max . | . . . Secondary Targets . | . . . Shots Hit Robots 48 | . 4 44 Core Hits 37 | . 3 34 Critical Hits 1 | . 1 . Critical Kills 1 | . 1 . Critical Parts Destroyed . | . . . Melee Attacks . | . . . Impact . | . . . Slashing . | . . . Piercing . | . . . Sneak Attacks . | . . . Combat Hostiles . | . . . Follow-up Attacks . | . . . Damage Inflicted 1121 | . 37 1084 Guns 286 | . 37 249 Cannons 123 | . . 123 Explosions 712 | . . 712 Melee . | . . . Ramming . | . . . Kinetic 373 | . 37 336 Thermal 30 | . . 30 Explosive 712 | . . 712 Electromagnetic 6 | . . 6 Impact . | . . . Slashing . | . . . Piercing . | . . . Highest Corruption 3 | . . 3 Average Corruption 2 | . . 2 Corruption Purged . | . . . Effects 4 | . . 4 Matter Fused 1 | . . 1 Heat Flow Errors 1 | . . 1 Energy Discharges 2 | . . 2 Overload Shots . | . . . Overflow Damage 6 | . . 6 Projectiles . | . . . Explosions 6 | . . 6 Melee . | . . . Knockbacks 3 | . . 3 Impact . | . . . Kinetic 3 | . . 3 Secondary . | . . . Self-Inflicted Damage 68 | . . 68 Shots 5 | . . 5 Rammed . | . . . Targets Rammed . | . . . Kicked . | . . . Crushed . | . . . Highest Temperature 225 | . 6 225 Average Temperature 43 | . 6 46 Received Heat Transfer 192 | . 24 168 Siege Activations . | . . . Robots Corrupted . | . . . Combat Hostiles . | . . . Parts Fried . | . . . Impact Corruptions . | . . . Robots Melted . | . . . Combat Hostiles . | . . . Parts Melted . | . . . Heat Transferred 18 | . . 18 Parts Sabotaged . | . . . Parts Stolen . | . . . Parts Stripped . | . . . Power Chain Reactions . | . . . Missiles Intercepted . | . . . Alert | -11 -10 -9 ------- Run | Scr Mat Mat Peak Influence 60 | . . 60 Initial . | . . . Average 16 | . . 23 Maximum Alert Level . | . . . Low Security (%) 100 | 100 100 100 Level 1 . | . . . Level 2 . | . . . Level 3 . | . . . Level 4 . | . . . Level 5 . | . . . High Security . | . . . Max Security . | . . . Squads Dispatched 10 | . 5 5 Investigation 2 | . 2 . Extermination . | . . . Reinforcement 6 | . 3 3 Assault 2 | . . 2 Garrison . | . . . Intercept . | . . . Construction Impeded . | . . . Haulers Reinforced . | . . . Stealth | -11 -10 -9 --------- Run | Scr Mat Mat Distress Signals 10 | . . 10 Communications Jammed . | . . . Distress Signals . | . . . Times Spotted 27 | . 6 21 Peak Tracking Total 6 | . 6 6 Tactical Retreats 3 | . . 3 Traps | -11 -10 -9 ------- Run | Scr Mat Mat Traps Triggered . | . . . Indirectly . | . . . Trap Hack Attempts . | . . . Triggered . | . . . Disarmed . | . . . Reprogrammed . | . . . Reused . | . . . Traps Extracted . | . . . Installed . | . . . Triggered . | . . . Machines | -11 -10 -9 ---------- Run | Scr Mat Mat Machines Disabled 2 | . . 2 Max in Single Turn 1 | . . 1 Machines Sabotaged . | . . . Garrisons Compromised . | . . . Overloaded Fab Kills . | . . . Fab Network Shutdowns . | . . . Hacking | -11 -10 -9 --------- Run | Scr Mat Mat Machines Accessed . | . . . Terminals . | . . . Fabricators . | . . . Repair Stations . | . . . Recycling Units . | . . . Scanalyzers . | . . . Garrison Access . | . . . Total Hacks . | . . . Successful . | . . . Failed . | . . . Catastrophic . | . . . Database Lockouts . | . . . Manual . | . . . Terminals . | . . . Fabricators . | . . . Repair Stations . | . . . Recycling Units . | . . . Scanalyzers . | . . . Garrison Access . | . . . Terminal Hacks . | . . . Fabricator Hacks . | . . . Repair Station Hacks . | . . . Recycling Unit Hacks . | . . . Scanalyzer . | . . . Garrison Access Hacks . | . . . Unauthorized Hacks . | . . . Terminals . | . . . Fabricators . | . . . Repair Stations . | . . . Recycling Units . | . . . Scanalyzers . | . . . Garrison Access . | . . . Data Cores Recovered . | . . . Used . | . . . Hacking Detections . | . . . Full Trace Events . | . . . Feedback Events . | . . . Feedback Blocked . | . . . Robot Schematics Acquired . | . . . Robots Built . | . . . Matter . | . . . Time . | . . . Total Robot Build Rating . | . . . Part Schematics Acquired . | . . . Parts Built . | . . . Matter . | . . . Time . | . . . Total Part Build Rating . | . . . Parts Repaired . | . . . Time . | . . . Parts Recycled . | . . . Recycled Matter . | . . . Retrieved Matter . | . . . Retrieved Components . | . . . Parts Scanalyzed . | . . . Part Schematics Acquired . | . . . Parts Damaged . | . . . Bothacking | -11 -10 -9 ------------ Run | Scr Mat Mat Used RIF Installer . | . . . Robots Hacked . | . . . Non-combat . | . . . Combat . | . . . Robot Hacks Applied . | . . . Relay Couplers Released . | . . . Robots Rewired . | . . . Allies Hacked . | . . . Hacks Repelled . | . . . Allies | -11 -10 -9 -------- Run | Scr Mat Mat Total Allies . | . . . Largest Group . | . . . Highest-Rated Group . | . . . Highest-Rated Ally . | . . . Total Orders . | . . . Ally Attacks . | . . . Total Damage . | . . . Kills . | . . . Allies Corrupted . | . . . Allies Melted . | . . . Intel | -11 -10 -9 ------- Run | Scr Mat Mat Robot Analysis Total . | . . . Derelict Logs Recovered . | . . . Drone Launches . | . . . Drone Recoveries . | . . . Exploration | -11 -10 -9 ------------- Run | Scr Mat Mat Turns Passed 546 | 68 89 389 Spaces Moved 368 | 46 69 253 Core 13 | 13 . . Treads 14 | 14 . . Legs . | . . . Wheels 341 | 19 69 253 Hover . | . . . Flight . | . . . Fastest Speed 50 | 50 100 90 Average Speed 98 | 104 100 97 Slowest Speed 160 | 160 100 100 Overloaded Moves . | . . . Propulsion Burnouts . | . . . Robots Hopped . | . . . Cave-ins Triggered . | . . . Exploration Rate (%) 24 | 4 25 43 Regions Visited 2 Branch Regions . Pre-discovered Areas . | . . . Known Exits Taken . | . . . Unknown Exits Taken 2 | 1 1 . Scrap Searched . | . . . Spaces Dug 23 | . . 23 Terrain Destroyed 137 | . . 137 Melee . | . . . Projectile . | . . . AOE 137 | . . 137 Terrain Rammed . | . . . Walls Destroyed . | . . . Machines Disabled . | . . . Actions | -11 -10 -9 --------- Run | Scr Mat Mat Total 467 | 65 72 330 Wait 10 | 3 . 7 Move 366 | 45 68 253 Hop . | . . . Pick Up 17 | 10 1 6 Fast Attach 3 | . . 3 Attach 13 | 6 . 7 Detach . | . . . Swap 5 | 1 . 4 Drop 2 | . . 2 Fire 51 | . 3 48 Melee . | . . . Ram . | . . . Kick . | . . . Crush . | . . . Escape Stasis . | . . . Rewire . | . . . Trap . | . . . Miscellaneous . | . . . Route ------- -11/Scrapyard -10/Materials -9/Materials History --------- Turn | Location | Event 6 | -11/Scrapyard | Discovered new exit (range 15) 69 | -11/Scrapyard | Entered Materials 144 | -10/Materials | Discovered new exit (range 15) 158 | -10/Materials | Entered another Materials area 158 | -9/Materials | Evolved 2 slots: Utility x2 255 | -9/Materials | Core integrity fell below 50% 302 | -9/Materials | Lost 6 parts (1p2n3w) 317 | -9/Materials | Build established: Mutant 383 | -9/Materials | Discovered new exit (range 14) 527 | -9/Materials | Core integrity fell below 20% 547 | -9/Materials | Destroyed by Lesser Abomination with Etherial Claws Last Messages --------------- 00449_ Acquired Wheel. 00452_ Resonating Anomaly suffers critical hit. 00458_ Acquired 18 matter. 00459_ ALERT: Dispatching additional forces to engage threats. 00464_ Acquired Prototype Engine. 00464_ Identified Cld. Ion Engine. 00469_ Acquired Armor Integrity Analyzer. 00482_ System corrupted: Heat flow error (+250). 00498_ Parts repaired by Paradox Anomaly. 00519_ Identified Imp. EM Shotgun. 00523_ Lesser Abomination knocked back. 00528_ System corrupted: Energy discharge (-67). 00528_ Parts repaired by Paradox Anomaly. 00533_ Acquired 58 matter. 00538_ Destroyed Beam Rifle. 00539_ Lesser Abomination spits out Wheel. 00539_ Lesser Abomination feeds off Hungry Anomaly, taking Hammer, Com. Wheel. 00540_ Hungry Anomaly eats Wheel. 00542_ Machine disabled. Map ----- +----------------------------------------------------+ | ?????????????????????????????????????????????????? | | ?????????????????????????????????????????????????? | | ?????????????????????????????????????????????????? | | ?????????????????????????????????????????????????? | | ?????????????????????????????????????????????????? | | ?????????????????????????????????????????????????? | | ?????????????????????????????????????????????????? | | ?????????????????????????????????????????????????? | | ?????????????????????????????????????????????????? | | ?????????????????????????????????????????????????? | | ?????????????????????????????????????????????????? | | #####?????????????# ???????????????????????????? | | ??????????????# ???????????????????????????? | | """" #????????????# #??????????????????????????? | | """" #???????????## #??????????????????????????? | | """" #??#????????# #??????????????????????????? | | #?# ###?????# #??????????????????????????? | | """" #? #??#### %#??????????????????????????? | | """" #?########### #??????????????????????????? | | """" #?# # ??????????????????????????? | | #?# ## #?????????????????????????? | | #+####?# # ########?????????????????? | | ##### #######+#?????????? | | + """"" % A =% ????????? | | % ##### """"" % %< n ????????? | | #???# """"" A@ A% %% ????????? | | ##### ###???????????????? | | ############+# " " #?????????????????? | | # " " ""#?????????????????? | | ##########?????????????????? | | % % #??????????????????????????? | | ##### #####;;;;####??????????????????????????? | | #/### # # #???????????????????????????? | | % # #???????????????????????????? | | # ## """ ####+#####+#????????????????? | | # ##""""" +% % T #????????????????? | | # ##""""" # ##???????????????? | | # "#""""" % #% T#???????????????? | | " "#?""" # """ ###??????????????? | | " ?? # """ #??????????????? | | """?########## """ #??????????????? | | ######### ?????####### #??????????????? | | ?????? " ????# # #??????????????? | | ??????? "??????# %%# % #??????????????? | | ???????????????# % /% #########??????????????? | | ???????????????# # ####??????????????????????? | | ???????????????###+### #?????????????????????????? | | ????????########## ## ##????#??????????????????? | | ????????# % % %????????????????? | | ????????# ######## ##???? ??????????????????? | +----------------------------------------------------+ Best States ------------- Heat Dissipation 28 Energy Generation 14 Energy Capacity 280 Matter Stores 300 Matter Capacity 300 Sight Range 16 Terrain Scan Density 10 Evasion (%) 50 Armor Integrity Analysis 33 Recoil Reduction 2 Item Schematics ----------------- None Robot Schematics ------------------ None Fabricated ------------ Nothing Alien Tech Used ----------------- None Achievements -------------- None Challenges ------------ None Game ------ Seed TrackerInertialPropulsion Manual? 0 Play Time 00:10:47 Cumulative 371.6 hours Start 2021.03.19 @ 20:49:23 End 2021.03.19 @ 20:55:37 Sessions 1 Manual Loads 0 Difficulty Rogue Special Mode Halloween2019/Abominations Game No. 294 Rogue 287 Adventurer 0 Explorer 7 Win Type - Total 15 Types 5/1/9/0/0/0/0/0/0 Lore% 79 Gallery% 93 Achievement% 76 Wizard Run 0 Options --------- ASCII 0 Keyboard 0 Movement Numpad Keybinds 0 Fullscreen 1 Font 18/X11Bold Map View 76x50 Tactical HUD 1 Map Filters NONE Filters NONE Steam 1 RUN: 77821fb8-cfb9-4849-b85b-96afafd9edc7